{"text_format":"1","workbook":"xlsx","n_sheets":4,"sheets":["Общий","Улан-Удэ","Прибайкальский","Селенгинский"],"not_rendered":{"charts":0,"images":0,"macros":1,"external_links":2,"defined_names":8,"comments":0,"pivot_tables":0},"unopened":[],"bounds":{"document_bytes":16777216,"sheet_cells":100000,"rows_first":2000,"rows_last":500,"rows_between":2000,"halvings":0,"cell_chars":16384,"cell_head_chars":4096},"cells_cut":0,"cells_raw":0,"read":"whole","date_system":"1900"}

{"sheet":"Общий","index":0,"n_rows":66,"n_cols":61,"rows_kept":66,"cut":false,"hidden":false,"merged":[[8,0,9,0],[8,1,9,1],[8,3,9,3],[8,36,8,41],[8,42,8,45],[8,6,8,7],[8,8,8,9],[8,10,8,17],[8,18,8,25],[8,46,8,47],[8,48,8,49],[8,50,8,51],[8,52,8,57],[7,27,7,29],[8,26,8,35]]}
[null,null,"Район",null,"Организационно-правовая форма (ИП, КФХ, грант КФХ, СПоК, грант СПоК , СПК, ООО, ЗАО, прочие, ЛПХ)","Основной вид деятельности"]
[]
[]
[]
[]
[]
[]
[]
["№","Наименование  СМП/адрес","Район","Адрес","Организационно-правовая форма (ИП, КФХ, грант КФХ, СПоК, грант СПоК , СПК, ООО, ЗАО, прочие, ЛПХ)","Основной вид деятельности","Консультации",null,"Планирование деятельности",null,"Услуги в области финансовой деятельности",null,null,null,null,null,null,null,"Услуги по подготовке и оформлению документов",null,null,null,null,null,null,null,"Юридические услуги",null,null,null,null,null,null,null,null,null,"Услуги в области производственной деятельности",null,null,null,null,null,"Услуги в области маркетинга",null,null,null,"Проведение совещаний, семинаров",null,"Обучение",null,"Информационные материалы",null,"Разработка и распространение типовой документации",null,null,null,null,null,"Телефон","Электронная почта","Примечания"]
[null,null,null,null,null,null,"ПОЛУЧАТЕЛЬ","Количество консультаций","ПОЛУЧАТЕЛЬ","Бизнес-план/ТЭО","ПОЛУЧАТЕЛЬ","Отчетность (ФНС, ФСС,ПФ), ведение бух.учета, книга ДиР","ПОЛУЧАТЕЛЬ","Отчетность (МСХ, оборотка и т.д.)","ПОЛУЧАТЕЛЬ","ЭЦП","ПОЛУЧАТЕЛЬ",null,"ПОЛУЧАТЕЛЬ","Пакет документов на господдержку","ПОЛУЧАТЕЛЬ","Пакет документов на привлечение инвестиций(кредит, микрозайм  и т.д.)","ПОЛУЧАТЕЛЬ","Презентация","ПОЛУЧАТЕЛЬ",null,"ПОЛУЧАТЕЛЬ","Пакет документов на регистрацию СМП","ПОЛУЧАТЕЛЬ","Пакет документов на внесение изменений в ОГРН, учр. документы","ПОЛУЧАТЕЛЬ","Договора","ПОЛУЧАТЕЛЬ","Кадровые документы( договор с работником, приказ и т.д.)","ПОЛУЧАТЕЛЬ",null,"ПОЛУЧАТЕЛЬ","Подбор техники, оборудования, технологии","ПОЛУЧАТЕЛЬ","Привлечение технолога по деятельности","ПОЛУЧАТЕЛЬ",null,"ПОЛУЧАТЕЛЬ","Сертификация","ПОЛУЧАТЕЛЬ",null,"ПОЛУЧАТЕЛЬ","Участие в семинаре","ПОЛУЧАТЕЛЬ",null,"ПОЛУЧАТЕЛЬ","Предоставлено инфор.-разд. материалы","ПОЛУЧАТЕЛЬ","Соглашения","ПОЛУЧАТЕЛЬ","Копирование, распечатка","ПОЛУЧАТЕЛЬ"]
[1,"кфх разуваев Ф.А.","баргузинский","с. малое уро","грант кфх","сх",1,3,null,null,null,null,1,2,null,null,null,null,1,10,null,null,null,null,null,null,null,null,null,null,null,null,null,null,null,null,null,null,null,null,null,null,null,null,null,null,null,null,null,null,null,null,null,null,null,null,null,null,null,null,"молоко, оборотка, отчет по гранту за 6мес."]
[2,"кфх аюшеев м.л.","баргузинский","с. соел","грант кфх","сх",null,null,null,null,null,null,1,3]
[3,"кфх толмачев а.с.","еравнинский","с. комсомольское","грант кфх","сх",1,2,null,null,null,null,1,3]
[4,"кфх бриков а.г.","джидинский","с. петропавловка","грант кфх","сх",1,2,null,null,null,null,null,null,null,null,null,null,1,1]
[5,"кфх разуваев Ф.А.","Прибайкальский район","с. малое уро","грант кфх","сх",1,3,null,null,null,null,1,2,null,null,null,null,1,10,null,null,null,null,null,null,null,null,null,null,null,null,null,null,null,null,null,null,null,null,null,null,null,null,null,null,null,null,null,null,null,null,null,null,null,null,null,null,null,null,"молоко, оборотка, отчет по гранту за 6мес."]
[6,"кфх аюшеев м.л.","Прибайкальский район","с. соел","грант кфх","сх",null,null,null,null,null,null,1,3]
[7,"кфх толмачев а.с.","Прибайкальский район","с. комсомольское","грант кфх","сх",1,2,null,null,null,null,1,3]
[8,"кфх бриков а.г.","Прибайкальский район","с. петропавловка","грант кфх","сх",1,2,null,null,null,null,null,null,null,null,null,null,1,1]
[9,"ип багаев","Селенгинский район","у. алан, ул. Гармаева,10","ип","иные",null,null,null,null,1,10]
[10,"кфх иванов иван иванович","Селенгинский район",null,"грант КФХ","сх",1,15,1,1,1,20,null,null,null,null,null,null,1,2,null,null,null,null,null,null,null,null,null,null,1,1]
[11,"кфх симонов","Селенгинский район",null,"кфх","сх",1,10,null,null,null,null,null,null,null,null,null,null,1,5,null,null,null,null,null,null,null,null,null,null,null,null,null,null,null,null,1,1,null,null,null,null,null,null,null,null,1,1,null,null,1,1,1,2]
[12,"ип борисенко","Селенгинский район",null,"кфх","торг",null,null,null,null,1,30]
[13,"бимбаева","Селенгинский район",null,"спок","сх",1,5,null,null,null,null,1,1,null,null,null,null,null,null,1,1]
[14,"ип багаев","Кяхтинский район","у. алан, ул. Гармаева,10","ип","иные",null,null,null,null,1,10]
[15,"кфх иванов иван иванович","Кяхтинский район",null,"грант КФХ","сх",1,15,1,1,1,20,null,null,null,null,null,null,1,2,null,null,null,null,null,null,null,null,null,null,1,1]
[16,"кфх симонов","Кяхтинский район",null,"кфх","сх",1,10,null,null,null,null,null,null,null,null,null,null,1,5,null,null,null,null,null,null,null,null,null,null,null,null,null,null,null,null,1,1,null,null,null,null,null,null,null,null,1,1,null,null,1,1,1,2]
[17,"ип борисенко","Кяхтинский район",null,"кфх","торг",null,null,null,null,1,30]
[18,"бимбаева","Кяхтинский район",null,"спок","сх",1,5,null,null,null,null,1,1,null,null,null,null,null,null,1,1]
[19,"кфх разуваев Ф.А.","Закаменский район","с. малое уро","грант кфх","сх",1,3,null,null,null,null,1,2,null,null,null,null,1,10,null,null,null,null,null,null,null,null,null,null,null,null,null,null,null,null,null,null,null,null,null,null,null,null,null,null,null,null,null,null,null,null,null,null,null,null,null,null,null,null,"молоко, оборотка, отчет по гранту за 6мес."]
[20,"кфх аюшеев м.л.","Закаменский район","с. соел","грант кфх","сх",null,null,null,null,null,null,1,3]
[21,"кфх толмачев а.с.","Закаменский район","с. комсомольское","грант кфх","сх",1,2,null,null,null,null,1,3]
[22,"кфх бриков а.г.","Закаменский район","с. петропавловка","грант кфх","сх",1,2,null,null,null,null,null,null,null,null,null,null,1,1]
[23,"кфх разуваев Ф.А.","Курумканский район","с. малое уро","грант кфх","сх",1,3,null,null,null,null,1,2,null,null,null,null,1,10,null,null,null,null,null,null,null,null,null,null,null,null,null,null,null,null,null,null,null,null,null,null,null,null,null,null,null,null,null,null,null,null,null,null,null,null,null,null,null,null,"молоко, оборотка, отчет по гранту за 6мес."]
[24,"кфх аюшеев м.л.","Курумканский район","с. соел","грант кфх","сх",null,null,null,null,null,null,1,3]
[25,"кфх толмачев а.с.","Курумканский район","с. комсомольское","грант кфх","сх",1,2,null,null,null,null,1,3]
[26,"кфх бриков а.г.","Курумканский район","с. петропавловка","грант кфх","сх",1,2,null,null,null,null,null,null,null,null,null,null,1,1]
[27,"ип багаев","Бичурский район","у. алан, ул. Гармаева,10","ип","иные",null,null,null,null,1,10]
[28,"кфх иванов иван иванович","Бичурский район",null,"грант КФХ","сх",1,15,1,1,1,20,null,null,null,null,null,null,1,2,null,null,null,null,null,null,null,null,null,null,1,1]
[29,"кфх симонов","Бичурский район",null,"кфх","сх",1,10,null,null,null,null,null,null,null,null,null,null,1,5,null,null,null,null,null,null,null,null,null,null,null,null,null,null,null,null,1,1,null,null,null,null,null,null,null,null,1,1,null,null,1,1,1,2]
[30,"ип борисенко","Бичурский район",null,"кфх","торг",null,null,null,null,1,30]
[31,"бимбаева","Бичурский район",null,"спок","сх",1,5,null,null,null,null,1,1,null,null,null,null,null,null,1,1]
[32,"кфх разуваев Ф.А.","Баргузинский район","с. малое уро","грант кфх","сх",1,3,null,null,null,null,1,2,null,null,null,null,1,10,null,null,null,null,null,null,null,null,null,null,null,null,null,null,null,null,null,null,null,null,null,null,null,null,null,null,null,null,null,null,null,null,null,null,null,null,null,null,null,null,"молоко, оборотка, отчет по гранту за 6мес."]
[33,"кфх аюшеев м.л.","Баргузинский район","с. соел","грант кфх","сх",null,null,null,null,null,null,1,3]
[34,"кфх толмачев а.с.","Баргузинский район","с. комсомольское","грант кфх","сх",1,2,null,null,null,null,1,3]
[35,"кфх бриков а.г.","Баргузинский район","с. петропавловка","грант кфх","сх",1,2,null,null,null,null,null,null,null,null,null,null,1,1]
[36,"ип багаев","Тункинский район","у. алан, ул. Гармаева,10","ип","иные",null,null,null,null,1,10]
[37,"кфх иванов иван иванович","Тункинский район",null,"грант КФХ","сх",1,15,1,1,1,20,null,null,null,null,null,null,1,2,null,null,null,null,null,null,null,null,null,null,1,1]
[38,"кфх симонов","Тункинский район",null,"кфх","сх",1,10,null,null,null,null,null,null,null,null,null,null,1,5,null,null,null,null,null,null,null,null,null,null,null,null,null,null,null,null,1,1,null,null,null,null,null,null,null,null,1,1,null,null,1,1,1,2]
[39,"ип борисенко","Тункинский район",null,"кфх","торг",null,null,null,null,1,30]
[40,"бимбаева","Тункинский район",null,"спок","сх",1,5,null,null,null,null,1,1,null,null,null,null,null,null,1,1]
[41,"ИП Жарникова Наталья Александровна","Тарбагатайский","с.Тарбагатай","ИП","торг",1,4,null,null,1,4,null,null,null,null,null,null,null,null,null,null,null,null,null,null,1,1]
[42,"ИП Платонова А.И","Тарбагатайский","с.Тарбагатай","ИП","быт",1,4,null,null,null,null,null,null,null,null,null,null,null,null,null,null,null,null,null,null,1,1]
[43,"ИП Климкович И.С","Тарбагатайский","с.Тарбагатай","ИП","торг",1,4]
[44,"ИП Трифонова Г.В","Тарбагатайский","с.Тарбагатай","ИП","торг",1,2,null,null,1,3]
[45,"КФХ Шайдорова М.А","Тарбагатайский","с.Пестерево","грант КФХ ","сх",1,6,1,1,1,7,null,null,null,null,null,null,1,1,1,1,null,null,null,null,null,null,null,null,null,null,null,null,null,null,null,null,null,null,null,null,null,null,null,null,null,null,1,1]
[46,"КФХ Безызвестных В.М","Тарбагатайский","с.Пестерево","КФХ","сх",1,4,null,null,1,3,null,null,null,null,null,null,1,1,null,null,null,null,null,null,null,null,null,null,null,null,null,null,null,null,null,null,null,null,null,null,null,null,null,null,null,null,1]
[47,"ИП Куделин Андрей Александрович","Тарбагатайский","с.Тарбагатай","ИП","сх",1,1,null,null,1,2,null,null,null,null,null,null,1,1,1,1,null,null,null,null,1,1,null,null,null,null,1,1,null,null,null,null,null,null,null,null,null,null,null,null,null,null,1,1]
[48,"КФХ Черных Надежда Сусоевна","Тарбагатайский","с.Тарбагатай","грант КФХ","сх",1,7,null,null,1,4,null,null,null,null,null,null,1,1,null,null,null,null,null,null,null,null,null,null,1,1,null,null,null,null,null,null,null,null,null,null,null,null,null,null,1,1]
[49,"ИП Ефимова Е.В","Тарбагатайский","с.Тарбагатай","ИП","торг",1,3,null,null,1,3,null,null,null,null,null,null,null,null,null,null,null,null,null,null,1,1,null,null,null,null,null,null,null,null,null,null,null,null,null,null,null,null,null,null,1,1]
[50,"ИП Мордовская Н.А","Тарбагатайский","с.Тарбагатай","ИП","торг",1,2,null,null,1,3,null,null,null,1,1,null,null,null,null,null,null,null,null,null,null,null,null,null,null,null,null,null,null,null,null,null,null,null,null,null,null,null,null,null,1,1]
[51,"КФХ Сапунов Сергей Николаевич","Тарбагатайский","с.Тарбагатай","КФХ","сх",1]
[52,"ип багаев","Хоринский район","у. алан, ул. Гармаева,10","ип","иные",null,null,null,null,1,10]
[53,"кфх иванов иван иванович","Хоринский район",null,"грант КФХ","сх",1,15,1,1,1,20,null,null,null,null,null,null,1,2,null,null,null,null,null,null,null,null,null,null,1,1]
[54,"кфх симонов","Хоринский район",null,"кфх","сх",1,10,null,null,null,null,null,null,null,null,null,null,1,5,null,null,null,null,null,null,null,null,null,null,null,null,null,null,null,null,1,1,null,null,null,null,null,null,null,null,1,1,null,null,1,1,1,2]
[55,"ип борисенко","Хоринский район",null,"кфх","торг",null,null,null,null,1,30]
[56,"бимбаева","Хоринский район",null,"спок","сх",1,5,null,null,null,null,1,1,null,null,null,null,null,null,1,1]

{"sheet":"Улан-Удэ","index":1,"n_rows":16,"n_cols":61,"rows_kept":16,"cut":false,"hidden":false,"merged":[[8,50,8,51],[8,52,8,57],[7,27,7,29],[8,0,9,0],[8,1,9,1],[8,3,9,3],[8,6,8,7],[8,8,8,9],[8,10,8,17],[8,18,8,25],[8,26,8,35],[15,16,15,17],[8,36,8,41],[8,42,8,45],[8,46,8,47],[8,48,8,49],[15,40,15,41],[15,18,15,19],[15,20,15,21],[15,22,15,23],[15,24,15,25],[15,26,15,27],[15,28,15,29],[15,30,15,31],[15,32,15,33],[15,34,15,35],[15,36,15,37],[15,6,15,7],[15,8,15,9],[15,10,15,11],[15,12,15,13],[15,14,15,15],[15,38,15,39],[15,54,15,55],[15,56,15,57],[15,42,15,43],[15,44,15,45],[15,46,15,47],[15,48,15,49],[15,50,15,51],[15,52,15,53]]}
[null,null,"Район",null,"Организационно-правовая форма (ИП, КФХ, грант КФХ, СПоК, грант СПоК , СПК, ООО, ЗАО, прочие, ЛПХ)","Основной вид деятельности"]
[]
[]
[]
[]
[]
[]
[]
["№","Наименование  СМП/адрес","Район","Адрес","Организационно-правовая форма (ИП, КФХ, грант КФХ, СПоК, грант СПоК , СПК, ООО, ЗАО, прочие, ЛПХ)","Основной вид деятельности","Консультации",null,"Планирование деятельности",null,"Услуги в области финансовой деятельности",null,null,null,null,null,null,null,"Услуги по подготовке и оформлению документов",null,null,null,null,null,null,null,"Юридические услуги",null,null,null,null,null,null,null,null,null,"Услуги в области производственной деятельности",null,null,null,null,null,"Услуги в области маркетинга",null,null,null,"Проведение совещаний, семинаров",null,"Обучение",null,"Информационные материалы",null,"Разработка и распространение типовой документации",null,null,null,null,null,"Телефон","Электронная почта","Примечания"]
[null,null,null,null,null,null,"ПОЛУЧАТЕЛЬ","Количество консультаций","ПОЛУЧАТЕЛЬ","Бизнес-план/ТЭО","ПОЛУЧАТЕЛЬ","Отчетность (ФНС, ФСС,ПФ), ведение бух.учета, книга ДиР","ПОЛУЧАТЕЛЬ","Отчетность (МСХ, оборотка и т.д.)","ПОЛУЧАТЕЛЬ","ЭЦП","ПОЛУЧАТЕЛЬ",null,"ПОЛУЧАТЕЛЬ","Пакет документов на господдержку","ПОЛУЧАТЕЛЬ","Пакет документов на привлечение инвестиций(кредит, микрозайм  и т.д.)","ПОЛУЧАТЕЛЬ","Презентация","ПОЛУЧАТЕЛЬ",null,"ПОЛУЧАТЕЛЬ","Пакет документов на регистрацию СМП","ПОЛУЧАТЕЛЬ","Пакет документов на внесение изменений в ОГРН, учр. документы","ПОЛУЧАТЕЛЬ","Договора","ПОЛУЧАТЕЛЬ","Кадровые документы( договор с работником, приказ и т.д.)","ПОЛУЧАТЕЛЬ",null,"ПОЛУЧАТЕЛЬ","Подбор техники, оборудования, технологии","ПОЛУЧАТЕЛЬ","Привлечение технолога по деятельности","ПОЛУЧАТЕЛЬ",null,"ПОЛУЧАТЕЛЬ","Сертификация","ПОЛУЧАТЕЛЬ",null,"ПОЛУЧАТЕЛЬ","Участие в семинаре","ПОЛУЧАТЕЛЬ",null,"ПОЛУЧАТЕЛЬ","Предоставлено инфор.-разд. материалы","ПОЛУЧАТЕЛЬ","Соглашения","ПОЛУЧАТЕЛЬ","Копирование, распечатка","ПОЛУЧАТЕЛЬ"]
[1,"кфх разуваев Ф.А.","баргузинский","с. малое уро","грант кфх","сх",1,3,null,null,null,null,1,2,null,null,null,null,1,10,null,null,null,null,null,null,null,null,null,null,null,null,null,null,null,null,null,null,null,null,null,null,null,null,null,null,null,null,null,null,null,null,null,null,null,null,null,null,null,null,"молоко, оборотка, отчет по гранту за 6мес."]
[2,"кфх аюшеев м.л.","баргузинский","с. соел","грант кфх","сх",null,null,null,null,null,null,1,3]
[3,"кфх толмачев а.с.","еравнинский","с. комсомольское","грант кфх","сх",1,2,null,null,null,null,1,3]
[4,"кфх бриков а.г.","джидинский","с. петропавловка","грант кфх","сх",1,2,null,null,null,null,null,null,null,null,null,null,1,1]
[null,"ИТОГО",null,null,null,null,{"$f":"SUBTOTAL(9,G11:G14)","v":3},7,0,0,0,0,3,8,0,0,0,0,2,11,0,0,0,0,0,0,0,0,0,0,0,0,0,0,0,0,0,0,{"$f":"SUBTOTAL(9,AM11:AM14)","v":0},0,0,0,0,0,0,0,0,0,0,0,0,0,0,0,0,0,0,0]
[null,"ВСЕГО ПО ВИДАМ УСЛУГ",null,null,null,null,{"$f":"H15","v":7},null,{"$f":"J15","v":0},null,{"$f":"L15","v":0},null,{"$f":"N15","v":8},null,{"$f":"P15","v":0},null,{"$f":"R15","v":0},null,{"$f":"T15","v":11},null,{"$f":"V15","v":0},null,{"$f":"X15","v":0},null,{"$f":"Z15","v":0},null,{"$f":"AB15","v":0},null,{"$f":"AD15","v":0},null,{"$f":"AF15","v":0},null,{"$f":"AH15","v":0},null,{"$f":"AJ15","v":0},null,{"$f":"AL15","v":0},null,{"$f":"AN15","v":0},null,{"$f":"AP15","v":0},null,{"$f":"AR15","v":0},null,{"$f":"AT15","v":0},null,{"$f":"AV15","v":0},null,{"$f":"AX15","v":0},null,{"$f":"AZ15","v":0},null,{"$f":"BB15","v":0},null,{"$f":"BD15","v":0},null,{"$f":"BF15","v":0}]

{"sheet":"Прибайкальский","index":2,"n_rows":16,"n_cols":61,"rows_kept":16,"cut":false,"hidden":false,"merged":[[8,50,8,51],[8,52,8,57],[7,27,7,29],[8,0,9,0],[8,1,9,1],[8,3,9,3],[8,6,8,7],[8,8,8,9],[8,10,8,17],[8,18,8,25],[8,26,8,35],[15,16,15,17],[8,36,8,41],[8,42,8,45],[8,46,8,47],[8,48,8,49],[15,40,15,41],[15,18,15,19],[15,20,15,21],[15,22,15,23],[15,24,15,25],[15,26,15,27],[15,28,15,29],[15,30,15,31],[15,32,15,33],[15,34,15,35],[15,36,15,37],[15,6,15,7],[15,8,15,9],[15,10,15,11],[15,12,15,13],[15,14,15,15],[15,38,15,39],[15,54,15,55],[15,56,15,57],[15,42,15,43],[15,44,15,45],[15,46,15,47],[15,48,15,49],[15,50,15,51],[15,52,15,53]]}
[null,null,"Район",null,"Организационно-правовая форма (ИП, КФХ, грант КФХ, СПоК, грант СПоК , СПК, ООО, ЗАО, прочие, ЛПХ)","Основной вид деятельности"]
[]
[]
[]
[]
[]
[]
[]
["№","Наименование  СМП/адрес","Район","Адрес","Организационно-правовая форма (ИП, КФХ, грант КФХ, СПоК, грант СПоК , СПК, ООО, ЗАО, прочие, ЛПХ)","Основной вид деятельности","Консультации",null,"Планирование деятельности",null,"Услуги в области финансовой деятельности",null,null,null,null,null,null,null,"Услуги по подготовке и оформлению документов",null,null,null,null,null,null,null,"Юридические услуги",null,null,null,null,null,null,null,null,null,"Услуги в области производственной деятельности",null,null,null,null,null,"Услуги в области маркетинга",null,null,null,"Проведение совещаний, семинаров",null,"Обучение",null,"Информационные материалы",null,"Разработка и распространение типовой документации",null,null,null,null,null,"Телефон","Электронная почта","Примечания"]
[null,null,null,null,null,null,"ПОЛУЧАТЕЛЬ","Количество консультаций","ПОЛУЧАТЕЛЬ","Бизнес-план/ТЭО","ПОЛУЧАТЕЛЬ","Отчетность (ФНС, ФСС,ПФ), ведение бух.учета, книга ДиР","ПОЛУЧАТЕЛЬ","Отчетность (МСХ, оборотка и т.д.)","ПОЛУЧАТЕЛЬ","ЭЦП","ПОЛУЧАТЕЛЬ",null,"ПОЛУЧАТЕЛЬ","Пакет документов на господдержку","ПОЛУЧАТЕЛЬ","Пакет документов на привлечение инвестиций(кредит, микрозайм  и т.д.)","ПОЛУЧАТЕЛЬ","Презентация","ПОЛУЧАТЕЛЬ",null,"ПОЛУЧАТЕЛЬ","Пакет документов на регистрацию СМП","ПОЛУЧАТЕЛЬ","Пакет документов на внесение изменений в ОГРН, учр. документы","ПОЛУЧАТЕЛЬ","Договора","ПОЛУЧАТЕЛЬ","Кадровые документы( договор с работником, приказ и т.д.)","ПОЛУЧАТЕЛЬ",null,"ПОЛУЧАТЕЛЬ","Подбор техники, оборудования, технологии","ПОЛУЧАТЕЛЬ","Привлечение технолога по деятельности","ПОЛУЧАТЕЛЬ",null,"ПОЛУЧАТЕЛЬ","Сертификация","ПОЛУЧАТЕЛЬ",null,"ПОЛУЧАТЕЛЬ","Участие в семинаре","ПОЛУЧАТЕЛЬ",null,"ПОЛУЧАТЕЛЬ","Предоставлено инфор.-разд. материалы","ПОЛУЧАТЕЛЬ","Соглашения","ПОЛУЧАТЕЛЬ","Копирование, распечатка","ПОЛУЧАТЕЛЬ"]
[1,"кфх разуваев Ф.А.","Прибайкальский район","с. малое уро","грант кфх","сх",1,3,null,null,null,null,1,2,null,null,null,null,1,10,null,null,null,null,null,null,null,null,null,null,null,null,null,null,null,null,null,null,null,null,null,null,null,null,null,null,null,null,null,null,null,null,null,null,null,null,null,null,null,null,"молоко, оборотка, отчет по гранту за 6мес."]
[2,"кфх аюшеев м.л.","Прибайкальский район","с. соел","грант кфх","сх",null,null,null,null,null,null,1,3]
[3,"кфх толмачев а.с.","Прибайкальский район","с. комсомольское","грант кфх","сх",1,2,null,null,null,null,1,3]
[4,"кфх бриков а.г.","Прибайкальский район","с. петропавловка","грант кфх","сх",1,2,null,null,null,null,null,null,null,null,null,null,1,1]
[null,"ИТОГО",null,null,null,null,{"$f":"SUBTOTAL(9,G11:G14)","v":3},7,0,0,0,0,3,8,0,0,0,0,2,11,0,0,0,0,0,0,0,0,0,0,0,0,0,0,0,0,0,0,{"$f":"SUBTOTAL(9,AM11:AM14)","v":0},0,0,0,0,0,0,0,0,0,0,0,0,0,0,0,0,0,0,0]
[null,"ВСЕГО ПО ВИДАМ УСЛУГ",null,null,null,null,{"$f":"H15","v":7},null,{"$f":"J15","v":0},null,{"$f":"L15","v":0},null,{"$f":"N15","v":8},null,{"$f":"P15","v":0},null,{"$f":"R15","v":0},null,{"$f":"T15","v":11},null,{"$f":"V15","v":0},null,{"$f":"X15","v":0},null,{"$f":"Z15","v":0},null,{"$f":"AB15","v":0},null,{"$f":"AD15","v":0},null,{"$f":"AF15","v":0},null,{"$f":"AH15","v":0},null,{"$f":"AJ15","v":0},null,{"$f":"AL15","v":0},null,{"$f":"AN15","v":0},null,{"$f":"AP15","v":0},null,{"$f":"AR15","v":0},null,{"$f":"AT15","v":0},null,{"$f":"AV15","v":0},null,{"$f":"AX15","v":0},null,{"$f":"AZ15","v":0},null,{"$f":"BB15","v":0},null,{"$f":"BD15","v":0},null,{"$f":"BF15","v":0}]

{"sheet":"Селенгинский","index":3,"n_rows":18,"n_cols":61,"rows_kept":18,"cut":false,"hidden":false,"merged":[[8,50,8,51],[8,52,8,57],[7,27,7,29],[8,0,9,0],[8,1,9,1],[8,3,9,3],[8,6,8,7],[8,8,8,9],[8,10,8,17],[8,18,8,25],[8,26,8,35],[17,16,17,17],[8,36,8,41],[8,42,8,45],[8,46,8,47],[8,48,8,49],[17,40,17,41],[17,18,17,19],[17,20,17,21],[17,22,17,23],[17,24,17,25],[17,26,17,27],[17,28,17,29],[17,30,17,31],[17,32,17,33],[17,34,17,35],[17,36,17,37],[17,6,17,7],[17,8,17,9],[17,10,17,11],[17,12,17,13],[17,14,17,15],[17,38,17,39],[17,54,17,55],[17,56,17,57],[17,42,17,43],[17,44,17,45],[17,46,17,47],[17,48,17,49],[17,50,17,51],[17,52,17,53]]}
[null,null,"Район",null,"Организационно-правовая форма (ИП, КФХ, грант КФХ, СПоК, грант СПоК , СПК, ООО, ЗАО, прочие, ЛПХ)","Основной вид деятельности"]
[]
[]
[]
[]
[]
[]
[]
["№","Наименование  СМП/адрес","Район","Адрес","Организационно-правовая форма (ИП, КФХ, грант КФХ, СПоК, грант СПоК , СПК, ООО, ЗАО, прочие, ЛПХ)","Основной вид деятельности","Консультации",null,"Планирование деятельности",null,"Услуги в области финансовой деятельности",null,null,null,null,null,null,null,"Услуги по подготовке и оформлению документов",null,null,null,null,null,null,null,"Юридические услуги",null,null,null,null,null,null,null,null,null,"Услуги в области производственной деятельности",null,null,null,null,null,"Услуги в области маркетинга",null,null,null,"Проведение совещаний, семинаров",null,"Обучение",null,"Информационные материалы",null,"Разработка и распространение типовой документации",null,null,null,null,null,"Телефон","Электронная почта","Примечания"]
[null,null,null,null,null,null,"ПОЛУЧАТЕЛЬ","Количество консультаций","ПОЛУЧАТЕЛЬ","Бизнес-план/ТЭО","ПОЛУЧАТЕЛЬ","Отчетность (ФНС, ФСС,ПФ), ведение бух.учета, книга ДиР","ПОЛУЧАТЕЛЬ","Отчетность (МСХ, оборотка и т.д.)","ПОЛУЧАТЕЛЬ","ЭЦП","ПОЛУЧАТЕЛЬ",null,"ПОЛУЧАТЕЛЬ","Пакет документов на господдержку","ПОЛУЧАТЕЛЬ","Пакет документов на привлечение инвестиций(кредит, микрозайм  и т.д.)","ПОЛУЧАТЕЛЬ","Презентация","ПОЛУЧАТЕЛЬ",null,"ПОЛУЧАТЕЛЬ","Пакет документов на регистрацию СМП","ПОЛУЧАТЕЛЬ","Пакет документов на внесение изменений в ОГРН, учр. документы","ПОЛУЧАТЕЛЬ","Договора","ПОЛУЧАТЕЛЬ","Кадровые документы( договор с работником, приказ и т.д.)","ПОЛУЧАТЕЛЬ",null,"ПОЛУЧАТЕЛЬ","Подбор техники, оборудования, технологии","ПОЛУЧАТЕЛЬ","Привлечение технолога по деятельности","ПОЛУЧАТЕЛЬ",null,"ПОЛУЧАТЕЛЬ","Сертификация","ПОЛУЧАТЕЛЬ",null,"ПОЛУЧАТЕЛЬ","Участие в семинаре","ПОЛУЧАТЕЛЬ",null,"ПОЛУЧАТЕЛЬ","Предоставлено инфор.-разд. материалы","ПОЛУЧАТЕЛЬ","Соглашения","ПОЛУЧАТЕЛЬ","Копирование, распечатка","ПОЛУЧАТЕЛЬ"]
[1,"ип багаев","Селенгинский район","у. алан, ул. Гармаева,10","ип","иные",null,null,null,null,1,10]
[{"$f":"A11+1","v":2},"кфх иванов иван иванович","Селенгинский район",null,"грант КФХ","сх",1,15,1,1,1,20,null,null,null,null,null,null,1,2,null,null,null,null,null,null,null,null,null,null,1,1]
[{"$f":"A12+1","v":3},"кфх симонов","Селенгинский район",null,"кфх","сх",1,10,null,null,null,null,null,null,null,null,null,null,1,5,null,null,null,null,null,null,null,null,null,null,null,null,null,null,null,null,1,1,null,null,null,null,null,null,null,null,1,1,null,null,1,1,1,2]
[4,"ип борисенко","Селенгинский район",null,"кфх","торг",null,null,null,null,1,30]
[5,"бимбаева","Селенгинский район",null,"спок","сх",1,5,null,null,null,null,1,1,null,null,null,null,null,null,1,1]
[]
[null,"ИТОГО",null,null,null,null,{"$f":"SUBTOTAL(9,G11:G16)","v":3},30,1,1,3,60,1,1,0,0,0,0,2,7,1,1,0,0,0,0,0,0,0,0,1,1,0,0,0,0,1,1,0,0,0,0,0,0,0,0,1,1,0,0,1,1,1,2,0,0,0,0]
[null,"ВСЕГО ПО ВИДАМ УСЛУГ",null,null,null,null,{"$f":"H17","v":30},null,{"$f":"J17","v":1},null,{"$f":"L17","v":60},null,{"$f":"N17","v":1},null,{"$f":"P17","v":0},null,{"$f":"R17","v":0},null,{"$f":"T17","v":7},null,{"$f":"V17","v":1},null,{"$f":"X17","v":0},null,{"$f":"Z17","v":0},null,{"$f":"AB17","v":0},null,{"$f":"AD17","v":0},null,{"$f":"AF17","v":1},null,{"$f":"AH17","v":0},null,{"$f":"AJ17","v":0},null,{"$f":"AL17","v":1},null,{"$f":"AN17","v":0},null,{"$f":"AP17","v":0},null,{"$f":"AR17","v":0},null,{"$f":"AT17","v":0},null,{"$f":"AV17","v":1},null,{"$f":"AX17","v":0},null,{"$f":"AZ17","v":1},null,{"$f":"BB17","v":2},null,{"$f":"BD17","v":0},null,{"$f":"BF17","v":0}]